[Event "9th RTU Open 2019"]
[Site "Riga"]
[Date "2019.08.11"]
[Round "9.19"]
[White "Lobanov, Sergei"]
[Black "Berzinsh, Roland"]
[Result "1-0"]
[ECO "C55"]
[WhiteElo "2505"]
[BlackElo "2386"]
[Annotator "ChessBase"]
[PlyCount "63"]
[EventDate "2019.08.05"]
[EventType "swiss"]
[EventCountry "LAT"]
[SourceTitle "playchess.com"]
[Source "ChessBase"]
[SourceQuality "1"]
[TimeControl "5400+30"]

1. e4 {[%emt 0:00:22]} e5 {[%emt 0:00:00]} 2. Nf3 {[%emt 0:00:05]} Nc6 {[%emt 0:00:00]} 3. Bc4 {[%emt 0:00:10]} Nf6 {[%emt 0:00:24]} 4. d3 {[%emt 0:00:05]} Be7 {[%emt 0:00:09]} 5. O-O {[%emt 0:00:28]} O-O {[%emt 0:00:13]} 6. Re1 {[%emt 0:00:04]} d6 {[%emt 0:00:10]} 7. a4 {[%emt 0:00:07]} Be6 {[%emt 0:00:17]} 8. Nc3 {[%emt 0:03:18]} Nd4 {[%emt 0:10:38]} 9. Nxd4 {[%emt 0:05:37]} exd4 {[%emt 0:00:12]} 10. Ne2 {[%emt 0:00:32]} Bxc4 {[%emt 0:03:05]} 11. dxc4 {[%emt 0:00:01]} Nxe4 {[%emt 0:00:10]} 12. Nxd4 {[%emt 0:00:14]} Nc5 {[%emt 0:00:05]} 13. Ra3 {[%emt 0:04:22]} Bf6 {[%emt 0:04:39]} 14. Rh3 {[%emt 0:20:43]} Re8 {[%emt 0:00:53]} 15. Be3 {[%emt 0:00:04]} g6 {[%emt 0:16:55]} 16. b3 {[%emt 0:05:07]} Re4 {[%emt 0:06:09]} 17. Ne2 {[%emt 0:02:08]} Qe7 {[%emt 0:02:23]} 18. Qd2 {[%emt 0:03:59]} Re8 {[%emt 0:04:09]} 19. Rd1 {[%emt 0:03:33]} Rg4 {[%emt 0:08:14]} 20. Nf4 {[%emt 0:06:40]} c6 {[%emt 0:00:25]} 21. Bxc5 {[%emt 0:05:08]} dxc5 {[%emt 0:03:35]} 22. Re3 {[%emt 0:02:19]} Qf8 {[%emt 0:00:13]} 23. Qd7 {[%emt 0:01:49]} Rxe3 {[%emt 0:01:46]} 24. fxe3 {[%emt 0:00:06]} h5 {[%emt 0:01:53]} 25. Kf2 {[%emt 0:00:34]} Be5 {[%emt 0:13:37]} 26. g3 {[%emt 0:00:46]} Rg5 {[%emt 0:09:35]} 27. Qxb7 {[%emt 0:00:19]} h4 {[%emt 0:00:35]} 28. Qxc6 {[%emt 0:00:23]} hxg3+ {[%emt 0:00:31]} 29. hxg3 {[%emt 0:00:04]} Rf5 {[%emt 0:01:18]} 30. Kg2 {[%emt 0:01:50]} Qe7 {[%emt 0:00:14]} 31. Qa8+ {[%emt 0:01:05]} Kg7 {[%emt 0:00:43]} 32. Rh1 {[%emt 0:00:06]} 1-0

[Event "9th RTU Open 2019"]
[Site "Riga"]
[Date "2019.08.11"]
[Round "9.20"]
[White "Keinanen, Toivo"]
[Black "Stremavicius, Titas"]
[Result "0-1"]
[ECO "A84"]
[WhiteElo "2386"]
[BlackElo "2474"]
[Annotator "ChessBase"]
[PlyCount "120"]
[EventDate "2019.08.05"]
[EventType "swiss"]
[EventCountry "LAT"]
[SourceTitle "playchess.com"]
[Source "ChessBase"]
[SourceQuality "1"]
[TimeControl "5400+30"]

1. c4 {[%emt 0:03:48]} f5 {[%emt 0:00:00]} 2. d4 {[%emt 0:01:09]} Nf6 {[%emt 0:00:00]} 3. Nc3 {[%emt 0:00:08]} e6 {[%emt 0:00:10]} 4. e3 {[%emt 0:01:35]} d5 {[%emt 0:00:58]} 5. Bd3 {[%emt 0:06:40]} c6 {[%emt 0:00:17]} 6. Qc2 {[%emt 0:02:15]} Bd6 {[%emt 0:01:24]} 7. h3 {[%emt 0:06:33]} O-O {[%emt 0:16:15]} 8. g4 {[%emt 0:02:03]} dxc4 {[%emt 0:01:52]} 9. Bxc4 {[%emt 0:02:33]} b5 {[%emt 0:07:37]} 10. Bb3 {[%emt 0:04:07]} Kh8 {[%emt 0:03:00]} 11. Nf3 {[%emt 0:01:38]} Na6 {[%emt 0:04:43]} 12. Ng5 {[%emt 0:04:32]} Qe7 {[%emt 0:13:21]} 13. e4 {[%emt 0:07:54]} e5 {[%emt 0:05:17]} 14. d5 {[%emt 0:10:50]} b4 {[%emt 0:11:12]} 15. Ne2 {[%emt 0:04:15]} cxd5 {[%emt 0:00:35]} 16. exf5 {[%emt 0:03:53]} Nc5 {[%emt 0:02:18]} 17. O-O {[%emt 0:03:45]} a5 {[%emt 0:00:34]} 18. Qd1 {[%emt 0:01:50]} Ba6 {[%emt 0:01:24]} 19. Ng3 {[%emt 0:02:19]} Bxf1 {[%emt 0:02:22]} 20. Nxf1 {[%emt 0:00:37]} e4 {[%emt 0:03:38]} 21. Be3 {[%emt 0:02:18]} h6 {[%emt 0:06:33]} 22. Bxc5 {[%emt 0:00:33]} hxg5 {[%emt 0:02:15]} 23. Be3 {[%emt 0:05:29]} Bf4 {[%emt 0:00:22]} 24. h4 {[%emt 0:06:49]} Bxe3 {[%emt 0:04:15]} 25. Nxe3 {[%emt 0:00:13]} gxh4 {[%emt 0:00:54]} 26. Ng2 {[%emt 0:02:42]} g5 {[%emt 0:01:55]} 27. fxg6 {[%emt 0:00:36]} Qe5 {[%emt 0:02:06]} 28. Nxh4 {[%emt 0:03:10]} Qg5 {[%emt 0:03:36]} 29. Nf5 {[%emt 0:01:42]} Qxg6 {[%emt 0:00:02]} 30. Ne3 {[%emt 0:02:12]} Ra7 {[%emt 0:00:50]} 31. Qd4 {[%emt 0:01:41]} Rg7 {[%emt 0:01:42]} 32. Bd1 {[%emt 0:05:26]} Nh7 {[%emt 0:00:41]} 33. Kf1 {[%emt 0:00:41]} Qf6 {[%emt 0:01:35]} 34. Qxf6 {[%emt 0:00:11]} Nxf6 {[%emt 0:00:01]} 35. Be2 {[%emt 0:00:32]} d4 {[%emt 0:00:36]} 36. Nf5 {[%emt 0:00:01]} d3 {[%emt 0:00:14]} 37. Nxg7 {[%emt 0:00:52]} dxe2+ {[%emt 0:00:06]} 38. Kxe2 {[%emt 0:00:00]} Kxg7 {[%emt 0:00:08]} 39. f3 {[%emt 0:00:33]} Rc8 {[%emt 0:01:57]} 40. g5 {[%emt 0:00:58]} exf3+ {[%emt 0:01:17]} 41. Kxf3 {[%emt 0:00:01]} Nh7 {[%emt 0:00:37]} 42. Ke4 {[%emt 0:00:46]} Rd8 {[%emt 0:01:12]} 43. Kf5 {[%emt 0:01:03]} Rd5+ {[%emt 0:00:19]} 44. Ke4 {[%emt 0:00:35]} Rd2 {[%emt 0:01:09]} 45. b3 {[%emt 0:00:00]} Nxg5+ {[%emt 0:00:18]} 46. Ke3 {[%emt 0:00:01]} Rb2 {[%emt 0:00:39]} 47. Kd4 {[%emt 0:00:26]} Ne6+ {[%emt 0:00:21]} 48. Kc4 {[%emt 0:00:52]} Kf6 {[%emt 0:00:48]} 49. a3 {[%emt 0:00:53]} Rc2+ {[%emt 0:00:07]} 50. Kb5 {[%emt 0:00:25]} Nd4+ {[%emt 0:00:01]} 51. Ka4 {[%emt 0:00:17]} bxa3 {[%emt 0:01:18]} 52. Rxa3 {[%emt 0:00:53]} Nc6 {[%emt 0:00:26]} 53. Kb5 {[%emt 0:00:28]} Ke5 {[%emt 0:00:25]} 54. Ra1 {[%emt 0:00:15]} Nd4+ {[%emt 0:00:42]} 55. Ka4 {[%emt 0:00:14]} Kd5 {[%emt 0:00:27]} 56. b4 {[%emt 0:00:55]} Kc4 {[%emt 0:00:28]} 57. b5 {[%emt 0:00:37]} Nb3 {[%emt 0:00:34]} 58. Ra3 {[%emt 0:00:44]} Rb2 {[%emt 0:00:18]} 59. b6 {[%emt 0:00:23]} Nc5+ {[%emt 0:00:05]} 60. Kxa5 {[%emt 0:00:02]} Rb5# {[%emt 0:00:08]} 0-1

[Event "9th RTU Open 2019"]
[Site "Riga"]
[Date "2019.08.11"]
[Round "9.23"]
[White "Kulaots, Kaido"]
[Black "Nesteretz, Anatoliy"]
[Result "1-0"]
[ECO "C11"]
[WhiteElo "2560"]
[BlackElo "2387"]
[Annotator "ChessBase"]
[PlyCount "57"]
[EventDate "2019.08.05"]
[EventType "swiss"]
[EventCountry "LAT"]
[SourceTitle "playchess.com"]
[Source "ChessBase"]
[SourceQuality "1"]
[TimeControl "5400+30"]

1. e4 {[%emt 0:00:00]} e6 {[%emt 0:00:00]} 2. d4 {[%emt 0:00:00]} d5 {[%emt 0:00:00]} 3. Nc3 {[%emt 0:00:01]} Nf6 {[%emt 0:00:11]} 4. e5 {[%emt 0:02:24]} Nfd7 {[%emt 0:00:09]} 5. f4 {[%emt 0:00:08]} c5 {[%emt 0:00:34]} 6. Nf3 {[%emt 0:00:09]} Nc6 {[%emt 0:00:39]} 7. Be3 {[%emt 0:00:15]} a6 {[%emt 0:01:07]} 8. Qd2 {[%emt 0:04:44]} b5 {[%emt 0:01:39]} 9. dxc5 {[%emt 0:00:31]} Bxc5 {[%emt 0:00:51]} 10. Bd3 {[%emt 0:01:44]} Qb6 {[%emt 0:18:38]} 11. Bf2 {[%emt 0:01:07]} b4 {[%emt 0:04:30]} 12. Na4 {[%emt 0:03:01]} Bxf2+ {[%emt 0:00:54]} 13. Qxf2 {[%emt 0:00:06]} Qxf2+ {[%emt 0:00:23]} 14. Kxf2 {[%emt 0:00:05]} a5 {[%emt 0:05:02]} 15. Rac1 {[%emt 0:06:13]} Ba6 {[%emt 0:03:14]} 16. Bxa6 {[%emt 0:01:42]} Rxa6 {[%emt 0:00:07]} 17. c4 {[%emt 0:00:17]} bxc3 {[%emt 0:08:28]} 18. Rxc3 {[%emt 0:01:21]} O-O {[%emt 0:05:28]} 19. a3 {[%emt 0:11:42]} f6 {[%emt 0:03:00]} 20. Rhc1 {[%emt 0:02:00]} Ncb8 {[%emt 0:01:24]} 21. Rc8 {[%emt 0:15:35]} fxe5 {[%emt 0:03:50]} 22. fxe5 {[%emt 0:01:47]} Kf7 {[%emt 0:11:37]} 23. R8c7 {[%emt 0:03:32]} Kg6 {[%emt 0:01:48]} 24. Ke3 {[%emt 0:01:36]} Kf5 {[%emt 0:06:40]} 25. Nc5 {[%emt 0:06:39]} Nxc5 {[%emt 0:00:18]} 26. Rxg7 {[%emt 0:02:15]} d4+ {[%emt 0:00:15]} 27. Nxd4+ {[%emt 0:00:15]} Kxe5 {[%emt 0:00:12]} 28. Rxc5+ {[%emt 0:00:15]} Kd6 {[%emt 0:00:07]} 29. b4 {[%emt 0:02:50] Kd5 Ke4+} 1-0

[Event "9th RTU Open 2019"]
[Site "Riga"]
[Date "2019.08.11"]
[Round "9.24"]
[White "Laurusas, Tomas"]
[Black "Sinz, Bernhard"]
[Result "1-0"]
[ECO "A27"]
[WhiteElo "2511"]
[BlackElo "2343"]
[Annotator "ChessBase"]
[PlyCount "107"]
[EventDate "2019.08.05"]
[EventType "swiss"]
[EventCountry "LAT"]
[SourceTitle "playchess.com"]
[Source "ChessBase"]
[SourceQuality "1"]
[TimeControl "5400+30"]

1. c4 {[%emt 0:00:42]} e5 {[%emt 0:00:00]} 2. Nc3 {[%emt 0:00:05]} Nc6 {[%emt 0:00:00]} 3. Nf3 {[%emt 0:01:03]} f5 {[%emt 0:00:58]} 4. d4 {[%emt 0:00:04]} e4 {[%emt 0:00:19]} 5. Ng5 {[%emt 0:00:04]} Bb4 {[%emt 0:11:47]} 6. Nh3 {[%emt 0:18:58]} Nf6 {[%emt 0:04:26]} 7. Qd2 {[%emt 0:05:44]} O-O {[%emt 0:08:19]} 8. a3 {[%emt 0:03:39]} Be7 {[%emt 0:01:31]} 9. b4 {[%emt 0:00:45]} a5 {[%emt 0:12:47]} 10. b5 {[%emt 0:00:41]} Nb8 {[%emt 0:00:12]} 11. Nf4 {[%emt 0:01:17]} Qe8 {[%emt 0:09:20]} 12. Bb2 {[%emt 0:04:56]} d6 {[%emt 0:06:52]} 13. e3 {[%emt 0:02:21]} Nh5 {[%emt 0:05:55]} 14. Nxh5 {[%emt 0:10:54]} Qxh5 {[%emt 0:00:10]} 15. Be2 {[%emt 0:00:05]} Qf7 {[%emt 0:02:57]} 16. O-O {[%emt 0:05:27]} c6 {[%emt 0:04:20]} 17. f3 {[%emt 0:01:15]} exf3 {[%emt 0:01:38]} 18. Rxf3 {[%emt 0:00:15]} Bg5 {[%emt 0:01:42]} 19. Raf1 {[%emt 0:08:03]} Qe7 {[%emt 0:02:07]} 20. Bd3 {[%emt 0:06:27]} Nd7 {[%emt 0:00:36]} 21. Bc1 {[%emt 0:00:52]} g6 {[%emt 0:02:15]} 22. Qc2 {[%emt 0:01:52]} Bf6 {[%emt 0:02:50]} 23. Kh1 {[%emt 0:06:23]} Bg7 {[%emt 0:04:34]} 24. e4 {[%emt 0:05:24]} fxe4 {[%emt 0:00:14]} 25. Rxf8+ {[%emt 0:02:07]} Nxf8 {[%emt 0:00:32]} 26. Nxe4 {[%emt 0:00:05]} Bf5 {[%emt 0:03:56]} 27. Bg5 {[%emt 0:00:30]} Qe6 {[%emt 0:00:47]} 28. d5 {[%emt 0:01:26]} cxd5 {[%emt 0:01:00]} 29. cxd5 {[%emt 0:00:02]} Qc8 {[%emt 0:00:57]} 30. Qe2 {[%emt 0:05:15]} Bxe4 {[%emt 0:00:30]} 31. Qxe4 {[%emt 0:00:06]} Qd7 {[%emt 0:00:22]} 32. b6 {[%emt 0:00:57]} Re8 {[%emt 0:00:42]} 33. Qf3 {[%emt 0:00:23]} Rc8 {[%emt 0:01:05]} 34. Bd2 {[%emt 0:02:38]} a4 {[%emt 0:00:49]} 35. h3 {[%emt 0:00:33]} Be5 {[%emt 0:02:44]} 36. Bh6 {[%emt 0:01:33]} Bg7 {[%emt 0:00:03]} 37. Bb5 {[%emt 0:00:15]} Qe7 {[%emt 0:01:18]} 38. Bd2 {[%emt 0:00:02]} Nd7 {[%emt 0:00:55]} 39. Re1 {[%emt 0:01:22]} Ne5 {[%emt 0:00:27]} 40. Qe4 {[%emt 0:00:45]} Qd8 {[%emt 0:01:37]} 41. Rb1 {[%emt 0:00:02]} Qf8 {[%emt 0:03:34]} 42. Qxa4 {[%emt 0:02:16]} Ra8 {[%emt 0:02:15]} 43. Qb3 {[%emt 0:00:29]} Qf2 {[%emt 0:00:17]} 44. Be3 {[%emt 0:00:08]} Qg3 {[%emt 0:00:20]} 45. Bg1 {[%emt 0:00:34]} Rxa3 {[%emt 0:00:43]} 46. Qxg3 {[%emt 0:00:06]} Rxg3 {[%emt 0:00:05]} 47. Bc6 {[%emt 0:00:15]} Nc4 {[%emt 0:01:43]} 48. Bxb7 {[%emt 0:00:31]} Nd2 {[%emt 0:00:42]} 49. Rd1 {[%emt 0:01:16]} Ne4 {[%emt 0:00:03]} 50. Re1 {[%emt 0:01:04]} Nc5 {[%emt 0:01:05]} 51. Bxc5 {[%emt 0:00:55]} dxc5 {[%emt 0:00:02]} 52. d6 {[%emt 0:00:35]} Rd3 {[%emt 0:00:03]} 53. Bd5+ {[%emt 0:00:12]} Rxd5 {[%emt 0:00:14]} 54. b7 {[%emt 0:00:05]} 1-0

[Event "9th RTU Open 2019"]
[Site "Riga"]
[Date "2019.08.11"]
[Round "9.26"]
[White "Hedman, Erik"]
[Black "Bulmaga, Irina"]
[Result "0-1"]
[ECO "E08"]
[WhiteElo "2373"]
[BlackElo "2435"]
[Annotator "NA"]
[PlyCount "52"]
[EventDate "2019.08.05"]
[EventType "swiss"]
[EventCountry "LAT"]
[SourceTitle "playchess.com"]
[Source "ChessBase"]
[SourceQuality "1"]
[TimeControl "5400+30"]

1. d4 {[%emt 0:00:00]} Nf6 {[%emt 0:00:00]} 2. c4 {[%emt 0:00:00]} e6 {[%emt 0:00:00]} 3. Nf3 {[%emt 0:00:00]} d5 {[%emt 0:00:00]} 4. g3 {[%emt 0:00:00]} Bb4+ {[%emt 0:00:08]} 5. Bd2 {[%emt 0:00:12]} Be7 {[%emt 0:00:13]} 6. Bg2 {[%emt 0:00:07]} O-O {[%emt 0:00:15]} 7. O-O {[%emt 0:00:24]} c6 {[%emt 0:00:20]} 8. Qc2 {[%emt 0:00:06]} a5 {[%emt 0:00:25]} 9. Bf4 {[%emt 0:05:37]} Nbd7 {[%emt 0:00:14]} 10. Rd1 {[%emt 0:03:19]} Nh5 {[%emt 0:00:15]} 11. Bc1 {[%emt 0:01:37]} b5 {[%emt 0:00:11]} 12. Ne5 {[%emt 0:01:23]} Bb7 {[%emt 0:04:16]} 13. cxb5 {[%emt 0:03:19]} cxb5 {[%emt 0:00:23]} 14. Nc6 {[%emt 0:00:04]} Bxc6 {[%emt 0:11:55]} 15. Qxc6 {[%emt 0:00:06]} Rb8 {[%emt 0:07:27]} 16. e4 {[%emt 0:09:32]} dxe4 {[%emt 0:05:21]} 17. Nc3 {[%emt 0:04:08]} Nhf6 {[%emt 0:07:33]} 18. Nxe4 {[%emt 0:10:19]} Nxe4 {[%emt 0:03:58]} 19. Bxe4 {[%emt 0:06:36]} Nf6 {[%emt 0:03:32]} 20. Bf4 {[%emt 0:05:33]} Rc8 {[%emt 0:03:19]} 21. Qb7 {[%emt 0:01:14]} g5 {[%emt 0:12:12]} 22. Bd2 {[%emt 0:08:48]} Rc7 {[%emt 0:02:14]} 23. Qxb5 {[%emt 0:00:18]} Nxe4 {[%emt 0:00:43]} 24. Bxa5 {[%emt 0:00:06]} Qd7 {[%emt 0:00:54]} 25. Qe5 {[%emt 0:00:08]} Ra7 {[%emt 0:00:56]} 26. b4 {[%emt 0:01:43]} Nc3 {[%emt 0:02:22]} 0-1

[Event "9th RTU Open 2019"]
[Site "Riga"]
[Date "2019.08.11"]
[Round "9.27"]
[White "Suleymenov, Alisher"]
[Black "Grinev, Valeriy"]
[Result "1/2-1/2"]
[ECO "A61"]
[WhiteElo "2376"]
[BlackElo "2437"]
[Annotator "NA"]
[PlyCount "48"]
[EventDate "2019.08.05"]
[EventType "swiss"]
[EventCountry "LAT"]
[SourceTitle "playchess.com"]
[Source "ChessBase"]
[SourceQuality "1"]
[TimeControl "5400+30"]

1. d4 {[%emt 0:03:44]} Nf6 {[%emt 0:00:00]} 2. c4 {[%emt 0:00:03]} c5 {[%emt 0:00:00]} 3. d5 {[%emt 0:00:32]} e6 {[%emt 0:00:07]} 4. Nf3 {[%emt 0:00:50]} exd5 {[%emt 0:00:10]} 5. cxd5 {[%emt 0:00:04]} g6 {[%emt 0:00:11]} 6. Nc3 {[%emt 0:00:20]} d6 {[%emt 0:00:08]} 7. Bf4 {[%emt 0:05:47]} Bg7 {[%emt 0:00:40]} 8. Qa4+ {[%emt 0:00:04]} Bd7 {[%emt 0:00:09]} 9. Qb3 {[%emt 0:00:02]} b5 {[%emt 0:00:09]} 10. Bxd6 {[%emt 0:00:04]} Qb6 {[%emt 0:00:15]} 11. Be5 {[%emt 0:02:19]} O-O {[%emt 0:00:15]} 12. e3 {[%emt 0:02:07]} c4 {[%emt 0:00:09]} 13. Qd1 {[%emt 0:03:54]} b4 {[%emt 0:00:08]} 14. Nb1 {[%emt 0:31:53]} Rc8 {[%emt 0:00:16]} 15. Be2 {[%emt 0:00:17]} Bb5 {[%emt 0:01:36]} 16. O-O {[%emt 0:06:08]} Nbd7 {[%emt 0:00:58]} 17. Bd4 {[%emt 0:00:36]} Qd6 {[%emt 0:05:42]} 18. Nbd2 {[%emt 0:02:01]} Qxd5 {[%emt 0:00:54]} 19. a4 {[%emt 0:01:38]} bxa3 {[%emt 0:07:17]} 20. Rxa3 {[%emt 0:00:02]} a6 {[%emt 0:04:25]} 21. Rc3 {[%emt 0:04:24]} Qe6 {[%emt 0:18:57]} 22. Qa1 {[%emt 0:06:14]} Rab8 {[%emt 0:05:47]} 23. Re1 {[%emt 0:10:47]} Nb6 {[%emt 0:27:02]} 24. Bf1 {[%emt 0:03:42]} Rb7 {[%emt 0:04:18]} 1/2-1/2

[Event "9th RTU Open 2019"]
[Site "Riga"]
[Date "2019.08.11"]
[Round "9.28"]
[White "Saveliev, Alexei"]
[Black "Ostrovskiy, Aleksandr"]
[Result "1-0"]
[ECO "B13"]
[WhiteElo "2355"]
[BlackElo "2453"]
[Annotator "ChessBase"]
[PlyCount "97"]
[EventDate "2019.08.05"]
[EventType "swiss"]
[EventCountry "LAT"]
[SourceTitle "playchess.com"]
[Source "ChessBase"]
[SourceQuality "1"]
[TimeControl "5400+30"]

1. e4 {[%emt 0:00:00]} c6 {[%emt 0:05:35]} 2. d4 {[%emt 0:00:00]} d5 {[%emt 0:00:25]} 3. exd5 {[%emt 0:00:00]} cxd5 {[%emt 0:00:05]} 4. Bd3 {[%emt 0:00:00]} Nc6 {[%emt 0:00:40]} 5. c3 {[%emt 0:00:48]} Qc7 {[%emt 0:00:39]} 6. Nd2 {[%emt 0:00:10]} Nf6 {[%emt 0:02:53]} 7. h3 {[%emt 0:01:52]} g6 {[%emt 0:05:00]} 8. Ngf3 {[%emt 0:00:50]} Bf5 {[%emt 0:00:22]} 9. Nb3 {[%emt 0:00:05]} Bxd3 {[%emt 0:02:42]} 10. Qxd3 {[%emt 0:00:02]} Bg7 {[%emt 0:03:49]} 11. O-O {[%emt 0:00:13]} O-O {[%emt 0:00:05]} 12. Re1 {[%emt 0:00:05]} Rfe8 {[%emt 0:00:46]} 13. Be3 {[%emt 0:03:41]} e6 {[%emt 0:00:31]} 14. Rad1 {[%emt 0:01:59]} Nd7 {[%emt 0:01:51]} 15. Qd2 {[%emt 0:02:43]} b5 {[%emt 0:00:40]} 16. Bf4 {[%emt 0:11:28]} Qb6 {[%emt 0:00:47]} 17. Bh6 {[%emt 0:09:46]} b4 {[%emt 0:08:29]} 18. Qf4 {[%emt 0:02:26]} bxc3 {[%emt 0:07:39]} 19. bxc3 {[%emt 0:00:32]} Qd8 {[%emt 0:14:51]} 20. Rc1 {[%emt 0:08:39]} Qf6 {[%emt 0:06:54]} 21. Qd2 {[%emt 0:00:11]} Bxh6 {[%emt 0:00:25]} 22. Qxh6 {[%emt 0:00:29]} Rec8 {[%emt 0:01:21]} 23. c4 {[%emt 0:01:40]} dxc4 {[%emt 0:07:41]} 24. Rxc4 {[%emt 0:00:04]} Ne7 {[%emt 0:01:32]} 25. Nc5 {[%emt 0:01:46]} Nb6 {[%emt 0:00:35]} 26. Ne4 {[%emt 0:03:58]} Qg7 {[%emt 0:00:38]} 27. Rxc8+ {[%emt 0:00:03]} Rxc8 {[%emt 0:00:28]} 28. Qd2 {[%emt 0:01:14]} Ned5 {[%emt 0:07:35]} 29. Rc1 {[%emt 0:22:47]} Rxc1+ {[%emt 0:01:54]} 30. Qxc1 {[%emt 0:00:06]} Qf8 {[%emt 0:00:39]} 31. h4 {[%emt 0:02:33]} Qb4 {[%emt 0:02:20]} 32. h5 {[%emt 0:00:37]} Qc4 {[%emt 0:07:51]} 33. Qd2 {[%emt 0:06:55]} Nd7 {[%emt 0:01:04]} 34. h6 {[%emt 0:00:39]} f6 {[%emt 0:01:09]} 35. g3 {[%emt 0:03:26]} Qc6 {[%emt 0:02:12]} 36. Qa5 {[%emt 0:02:28]} N5b6 {[%emt 0:03:47]} 37. Qa3 {[%emt 0:01:00]} Nc8 {[%emt 0:01:14]} 38. Nfd2 {[%emt 0:01:26]} Kf7 {[%emt 0:00:51]} 39. Qb4 {[%emt 0:06:21]} Qd5 {[%emt 0:00:22]} 40. Qc3 {[%emt 0:00:24]} Nd6 {[%emt 0:00:59]} 41. Nxd6+ {[%emt 0:03:21]} Qxd6 {[%emt 0:00:01]} 42. Ne4 {[%emt 0:00:19]} Qd5 {[%emt 0:00:57]} 43. Nc5 {[%emt 0:02:48]} Nb8 {[%emt 0:00:40]} 44. Qa5 {[%emt 0:01:10]} Nc6 {[%emt 0:00:17]} 45. Qc7+ {[%emt 0:00:01]} Ke8 {[%emt 0:00:44]} 46. Qxh7 {[%emt 0:01:14]} Nxd4 {[%emt 0:00:17]} 47. Qxg6+ {[%emt 0:00:22]} Kd8 {[%emt 0:00:41]} 48. Qxf6+ {[%emt 0:00:33]} Kc8 {[%emt 0:00:09]} 49. Qh8+ {[%emt 0:00:29]} 1-0

[Event "9th RTU Open 2019"]
[Site "Riga"]
[Date "2019.08.11"]
[Round "9.29"]
[White "Lagunow, Raphael"]
[Black "Sowray, Peter J"]
[Result "1/2-1/2"]
[ECO "D32"]
[WhiteElo "2427"]
[BlackElo "2334"]
[Annotator "NA"]
[PlyCount "35"]
[EventDate "2019.08.05"]
[EventType "swiss"]
[EventCountry "LAT"]
[SourceTitle "playchess.com"]
[Source "ChessBase"]
[SourceQuality "1"]
[TimeControl "5400+30"]

1. Nf3 {[%emt 0:00:00]} d5 {[%emt 0:01:26]} 2. e3 {[%emt 0:00:16]} Nf6 {[%emt 0:00:30]} 3. c4 {[%emt 0:00:07]} e6 {[%emt 0:00:15]} 4. Nc3 {[%emt 0:00:06]} c5 {[%emt 0:01:06]} 5. cxd5 {[%emt 0:00:07]} exd5 {[%emt 0:00:08]} 6. d4 {[%emt 0:00:23]} Nc6 {[%emt 0:01:46]} 7. Bb5 {[%emt 0:03:38]} Bd6 {[%emt 0:01:05]} 8. dxc5 {[%emt 0:13:10]} Bxc5 {[%emt 0:00:18]} 9. Nd4 {[%emt 0:00:13]} Qd6 {[%emt 0:09:00]} 10. O-O {[%emt 0:11:04]} O-O {[%emt 0:04:24]} 11. Nxc6 {[%emt 0:13:37]} bxc6 {[%emt 0:00:57]} 12. Be2 {[%emt 0:00:06]} Bb6 {[%emt 0:05:53]} 13. Bf3 {[%emt 0:01:04]} Bc7 {[%emt 0:01:22]} 14. g3 {[%emt 0:00:08]} Bh3 {[%emt 0:01:16]} 15. Re1 {[%emt 0:02:07]} Rfe8 {[%emt 0:04:08]} 16. b3 {[%emt 0:10:54]} h5 {[%emt 0:07:04]} 17. Qd3 {[%emt 0:08:07]} Ng4 {[%emt 0:04:51]} 18. Bg2 {[%emt 0:05:18]} 1/2-1/2